bitfinex-derivatives/quotes_SOLF0:USTF0_20250415
["timestamp","ask_amount","ask_price","bid_price","bid_amount"]
[1744704685383,0.05393185,131.93,131.9,0.056195]
[1744704699200,4.73901702,131.93,131.9,0.056195]
[1744704708001,4.68508517,131.91,131.9,0.056195]
[1744704711903,4.73901702,131.93,131.9,0.056195]
[1744704712405,0.05393185,131.93,131.9,0.056195]
[1744704712606,4.73901702,131.93,131.9,0.056195]
[1744704715308,33.41901702,131.93,131.9,0.056195]
[1744704719407,33.41901702,131.93,131.84,33.36508517]
[1744704719610,33.36508517,131.93,131.84,33.36508517]
[1744704720414,0.05179215,131.9,131.87,0.0518477]
[1744704721312,597.26,131.89,131.53,7.597]
[1744704721638,2.6845,131.88,131.75,76.21760343]
[1744704721909,7.94765724,131.87,131.81,4.68508517]
[1744704722111,4.68508517,131.85,131.81,28.68]
[1744704722308,3.26261725,131.84,131.8,28.68]
[1744704722510,0.05726588,131.84,131.82,0.05690732]
[1744704722717,4.68508517,131.83,131.82,0.05690732]
[1744704727113,0.05726588,131.84,131.82,0.05690732]
[1744704727415,4.68508517,131.89,131.83,4.68508517]
[1744704727612,4.68508517,131.87,131.84,28.68]
[1744704727812,4.68508517,131.87,131.84,28.7]
[1744704728310,4.74130894,131.87,131.84,28.74812872]
[1744704730609,0.05622377,131.87,131.84,28.74812872]
[1744704731513,0.05622377,131.87,131.85,4.005]
[1744704732313,4.68508517,131.91,131.85,8.69008517]
[1744704733421,0.04890062,131.89,131.87,0.0526003]
[1744704733711,0.04890062,131.89,131.88,28.7]
[1744704733916,28.7,131.95,131.88,28.7]
[1744704734118,4.68508517,131.91,131.88,28.7]
[1744704735017,4.73683993,131.91,131.88,28.75123932]
[1744704736118,4.73683993,131.91,131.88,0.05123932]
[1744704736420,0.05175476,131.91,131.88,28.73123932]
[1744704736619,4.68508517,131.94,131.88,28.73123932]
[1744704736817,4.68508517,131.92,131.88,28.68]
[1744704737720,0.02105568,131.91,131.89,0.05063155]
[1744704740328,0.02105568,131.91,131.89,62.05063155]
[1744704740516,0.02105568,131.91,131.89,0.05063155]
[1744704742323,28.68,131.98,131.89,0.05063155]
[1744704742523,4.68508517,131.94,131.88,33.36508517]
[1744704743618,4.68508517,131.95,131.9,4.74208707]
[1744704743920,4.68508517,131.95,131.91,28.73208692]
[1744704744121,4.68508517,131.94,131.91,28.73208692]
[1744704744320,4.68508517,131.94,131.91,28.73518795]
[1744704745323,28.68,132.01,131.91,28.73518795]
[1744704745520,28.68,132.01,131.9,8.96118517]
[1744704745521,4.68508517,131.94,131.92,28.64]
[1744704745925,4.68508517,131.94,131.92,28.68956275]
[1744704746927,4.68508517,131.94,131.93,62.0]
[1744704748831,4.68508517,131.94,131.92,28.68956275]
[1744704750734,28.68,132.01,131.92,28.68956275]
[1744704751033,4.68508517,131.95,131.92,28.64]
[1744704751336,4.68508517,131.95,131.92,0.05577145]
[1744704751534,4.68508517,131.95,131.93,28.64]
[1744704751835,4.68508517,131.96,131.93,90.64]
[1744704752834,28.68,132.01,131.93,90.64]
[1744704753033,4.68508517,131.96,131.93,90.64]
[1744704753334,1.43348517,131.96,131.93,90.69101805]
[1744704753833,4.68508517,131.97,131.93,90.69101805]
[1744704754034,4.68508517,131.97,131.94,0.05675468]
[1744704757232,4.68508517,131.97,131.95,28.64]
[1744704758436,4.68508517,131.97,131.94,0.05675468]
[1744704758738,4.68508517,131.97,131.95,28.64]
[1744704759039,4.68508517,131.96,131.89,28.64]
[1744704759236,4.68508517,131.94,131.9,2.0617]
[1744704760137,4.68508517,131.94,131.91,0.0537319]
[1744704760138,0.04806359,131.93,131.91,0.0537319]
[1744704761939,0.04806359,131.93,131.91,62.0537319]
[1744704762971,4.68508517,131.92,131.91,62.0537319]
[1744704764133,4.73314876,131.93,131.91,62.0537319]
[1744704765743,4.68508517,131.92,131.91,62.0537319]
[1744704768248,4.73314876,131.93,131.91,62.0537319]
[1744704771149,4.68508517,131.92,131.91,0.0537319]
[1744704772753,0.04806359,131.93,131.91,0.0537319]
[1744704772951,4.73314876,131.93,131.91,0.0537319]
[1744704775853,0.04806359,131.93,131.91,0.0537319]
[1744704776152,4.73314876,131.93,131.91,0.0537319]
[1744704776952,0.04806359,131.93,131.91,0.0537319]
[1744704777354,0.04806359,131.93,131.92,28.42]
[1744704777554,4.68508517,131.97,131.92,28.42]
[1744704778254,4.88625107,131.96,131.92,28.42]
[1744704779055,4.68508517,131.97,131.92,28.42]
[1744704779354,4.68508517,131.97,131.91,4.73881707]
[1744704779555,4.68508517,131.97,131.92,28.42]
[1744704780158,4.88666832,131.96,131.92,28.42]
[1744704780756,4.68508517,131.97,131.92,28.42]
[1744704780958,4.68508517,131.93,131.91,0.0537319]
[1744704781259,4.68508517,131.93,131.91,28.47510344]
[1744704781458,28.42,131.98,131.91,28.47510344]
[1744704781659,4.68508517,131.93,131.91,28.47510344]
[1744704781958,4.68508517,131.96,131.91,28.47510344]
[1744704782550,177.9510707,132.1,131.95,4.68508517]
[1744704782751,4.68508517,132.01,131.96,28.42]
[1744704783065,3.9442,132.09,131.98,4.68508517]
[1744704783066,4.68508517,132.04,131.98,4.68508517]
[1744704783357,4.88233862,132.03,132.0,0.05599785]
[1744704783753,4.68508517,132.04,132.0,0.05599785]
[1744704784859,4.68508517,132.08,132.03,4.68508517]
[1744704785055,4.68508517,132.08,132.04,0.05454838]
[1744704785263,28.42,132.11,132.04,0.05454838]
[1744704785456,4.68508517,132.11,132.05,4.68508517]
[1744704785762,4.68508517,132.11,132.07,0.05019028]
[1744704786060,28.42,132.15,132.07,0.05019028]
[1744704786260,4.68508517,132.12,132.1,0.05811929]
[1744704787159,28.42,132.14,132.1,0.05811929]
[1744704787362,35.72026726,132.14,132.1,0.05811929]
[1744704791867,7.30026726,132.11,132.1,0.05811929]
[1744704792266,7.30026726,132.13,132.1,0.05811929]
[1744704792967,35.70026726,132.13,132.1,0.05811929]
[1744704793261,7.30026726,132.11,132.04,4.0249]
[1744704794367,0.0525751,132.09,132.06,0.04988023]
[1744704795760,0.0525751,132.09,132.06,62.04988023]
[1744704795989,0.0525751,132.09,132.06,0.04988023]
[1744704796160,28.4,132.13,132.06,28.44988023]
[1744704796361,2.0276,132.15,132.07,7.30026726]
[1744704796566,2.0276,132.15,132.07,9.32496726]
[1744704797270,2.0276,132.15,132.1,0.05106573]
[1744704798869,2.0276,132.15,132.1,62.05106573]
[1744704799208,35.70026726,132.17,132.1,62.05106573]
[1744704799467,7.30026726,132.15,132.1,62.05106573]
[1744704801062,7.30026726,132.15,132.1,0.05106573]
[1744704801965,7.30026726,132.13,132.1,0.05106573]
[1744704802163,32.576,132.14,132.1,0.05106573]
[1744704802368,7.30026726,132.11,132.1,0.05106573]
[1744704803267,7.30026726,132.08,132.03,28.4]
[1744704804068,7.30026726,132.08,132.03,90.4]
[1744704804269,0.05830053,132.07,132.04,0.0534921]
[1744704804468,7.30026726,132.06,132.04,0.0534921]
[1744704806274,0.05830053,132.07,132.04,0.0534921]
[1744704807474,0.05830053,132.07,132.04,28.7134921]
[1744704807679,0.05830053,132.07,132.05,62.0]
[1744704811372,0.05830053,132.07,132.04,28.7134921]
[1744704814280,0.05830053,132.07,132.05,62.0]
[1744704814578,35.96026726,132.12,132.05,68.1108]
[1744704815083,7.30026726,132.12,132.05,68.1108]
[1744704815374,4.67173068,132.11,132.06,4.67173068]
[1744704815580,4.67173068,132.11,132.07,28.71176789]
[1744704815780,4.67173068,132.09,132.07,28.71176789]
[1744704816980,4.67173068,132.09,132.07,0.05176789]
[1744704817183,7.30308953,132.1,132.07,0.05176789]
[1744704817580,7.30308953,132.08,132.07,0.05176789]
[1744704818382,35.96308953,132.08,132.01,6.1444]
[1744704818601,7.30308953,132.05,132.01,68.1444]
[1744704819392,0.05772116,132.04,132.02,0.04898187]
[1744704819884,7.30308953,132.03,131.97,28.66]
[1744704820886,7.30308953,132.07,131.98,7.30308953]
[1744704821089,0.04856828,132.01,131.99,0.05335957]
[1744704821286,0.05345085,132.01,132.0,28.66]
[1744704821893,7.30308953,132.07,132.0,28.66]
[1744704822090,7.30308953,132.07,132.0,30.714]
[1744704822791,7.30308953,132.07,132.01,62.0]
[1744704823089,0.05189169,132.05,132.03,0.05810685]
[1744704834194,7.35498122,132.05,132.03,0.05810685]
[1744704836699,0.05189169,132.05,132.03,0.05810685]
[1744704838702,28.58,132.09,132.03,0.05810685]
[1744704838904,35.88308953,132.09,132.01,30.5897]
[1744704839702,35.88308953,132.09,132.04,0.05231802]
[1744704841504,7.30308953,132.07,132.04,0.05231802]
[1744704841706,7.30308953,132.05,131.97,30.5094]
[1744704841906,7.30308953,132.03,131.97,30.5094]
[1744704842105,7.30308953,132.03,131.97,1.9494]
[1744704842805,7.30308953,131.99,131.94,2.0398]
[1744704843002,28.56,131.98,131.95,0.05095613]
[1744704843202,28.61062563,131.98,131.95,0.05095613]
[1744704843711,0.05062563,131.98,131.95,0.05095613]
[1744704847508,7.30308953,132.04,131.95,35.93404566]
[1744704847806,7.30308953,132.02,131.95,28.58]
[1744704848606,7.30308953,132.02,131.97,0.05497793]
[1744704848807,28.58,132.01,131.97,0.05497793]
[1744704849001,7.30308953,132.02,131.97,0.05497793]
[1744704849202,28.58,132.01,131.97,0.05497793]
[1744704849806,7.30308953,132.0,131.97,0.05497793]
[1744704850603,28.58,132.01,131.97,0.05497793]
[1744704855214,7.30308953,132.0,131.97,0.05497793]
[1744704856515,28.58,132.01,131.97,0.05497793]
[1744704859212,2.0419,132.06,131.97,0.05497793]
[1744704859421,35.88308953,132.05,132.0,0.05377033]
[1744704873824,7.30308953,132.05,132.0,0.05377033]
[1744704875233,30.4619,132.06,132.0,0.05377033]
[1744704875432,28.42,132.06,132.0,0.05377033]
[1744704875839,28.42,132.06,132.0,28.47377033]
[1744704877133,37.75828953,132.07,132.0,28.47377033]
[1744704879935,30.4552,132.07,132.0,28.47377033]
[1744704880131,7.30308953,132.11,132.01,7.30308953]
[1744704880327,7.30308953,132.09,132.0,28.42]
[1744704880546,7.30308953,132.09,132.05,0.04951266]
[1744704880547,35.72308953,132.09,132.05,0.04951266]
[1744704880732,4.1268,132.11,132.05,0.04951266]
[1744704880938,7.30308953,132.1,132.05,0.04951266]
[1744704881131,7.30308953,132.08,132.05,0.04951266]
[1744704881330,35.72308953,132.1,132.05,0.04951266]
[1744704882336,7.30308953,132.08,132.05,0.04951266]
[1744704882936,28.42,132.07,132.05,0.04951266]
[1744704883136,4.67648664,132.06,132.0,28.42]
[1744704883737,4.67648664,132.04,132.0,28.42]
[1744704884236,0.05143236,132.03,132.01,0.05357107]
[1744704887337,7.35897335,132.03,132.01,0.05357107]
[1744704887641,7.35897335,132.03,131.94,34.6012]
[1744704887840,7.30754099,132.01,131.94,34.6012]
[1744704888035,35.72754099,132.01,131.94,34.6012]
[1744704888736,0.04831829,131.99,131.96,0.04974858]
[1744704892350,7.35585928,131.99,131.96,0.04974858]
[1744704893350,7.30754099,131.97,131.96,0.04974858]
[1744704894344,7.30754099,131.97,131.91,573.78]
[1744704895580,0.04969844,131.95,131.93,0.05627581]
[1744704899155,7.35723943,131.95,131.93,0.05627581]
[1744704899356,0.04969844,131.95,131.93,0.05627581]
[1744704901559,7.35723943,131.95,131.93,0.05627581]
[1744704901961,35.87723943,131.95,131.93,0.05627581]
[1744704904256,0.04969844,131.95,131.93,0.05627581]
[1744704904463,28.56969844,131.95,131.93,0.05627581]
[1744704905165,0.04969844,131.95,131.93,0.05627581]
[1744704906962,1.9543,132.0,131.93,0.05627581]
[1744704907194,4.67993539,132.0,131.94,4.67993539]
[1744704907562,4.67993539,131.98,131.93,30.6788]
[1744704908065,0.04858357,131.97,131.94,0.05265863]
[1744704908366,0.04858357,131.97,131.94,4.73259402]
[1744704916779,0.04858357,131.97,131.94,0.05265863]
[1744704916974,4.67993539,131.95,131.94,0.05265863]
[1744704919376,4.67993539,131.95,131.87,28.52]
[1744704919578,4.67993539,131.92,131.87,28.52]
[1744704920378,0.0571813,131.91,131.88,0.05593897]
[1744704921577,0.0571813,131.91,131.88,4.73587436]
[1744704924181,4.67993539,131.96,131.9,4.67993539]
[1744704924395,4.67993539,131.96,131.91,28.52]
[1744704924678,4.67993539,131.94,131.91,28.52]
[1744704925183,4.7374522,131.94,131.91,28.57438088]
[1744704927179,4.67993539,131.92,131.91,0.05438088]
[1744704930381,32.89993539,131.92,131.91,0.05438088]
[1744704931186,35.54508092,131.92,131.91,0.05438088]
[1744704931898,35.54508092,131.92,131.85,32.371]
[1744704932082,7.32508092,131.9,131.85,32.371]
[1744704932988,0.05619844,131.89,131.86,0.05573302]
[1744704934486,7.32508092,131.88,131.86,0.05573302]
[1744704936194,0.05619844,131.89,131.86,0.05573302]
[1744704936384,0.05619844,131.89,131.86,2.03273302]
[1744704939189,0.05619844,131.89,131.86,0.05573302]
[1744704942896,7.38127936,131.89,131.86,0.05573302]
[1744704952705,7.32508092,131.87,131.86,0.05573302]
[1744704953118,4.69040636,131.87,131.86,0.05573302]
[1744704955709,4.69040636,131.87,131.79,28.24]
[1744704955710,40.51040636,131.87,131.79,28.24]
[1744704955910,4.69040636,131.8,131.79,28.24]
[1744704956814,4.69040636,131.8,131.78,2.0191659]
[1744704958116,4.69040636,131.8,131.78,0.0544659]
[1744704963916,4.69040636,131.77,131.76,28.24]
[1744704964108,4.69040636,131.77,131.74,2.0705]
[1744704964313,4.69040636,131.75,131.73,32.5393]
[1744704964817,4.7409008,131.75,131.73,32.58743247]
[1744704969520,4.7409008,131.75,131.73,28.40813247]
[1744704970416,0.05049444,131.75,131.73,33.09853883]
[1744704970728,4.69040636,131.78,131.73,33.09853883]
[1744704970915,4.69040636,131.78,131.73,33.05040636]
[1744704971623,0.05795382,131.77,131.74,0.05719557]
[1744704971920,546.24,131.9,131.75,4.69040636]
[1744704972220,107.3768798,132.11,131.74,0.05719557]
[1744704972221,4.69040636,131.88,131.82,4.69040636]
[1744704972521,4.69040636,131.88,131.83,28.38]
[1744704972920,0.05531621,131.87,131.84,0.04942177]
[1744704974223,4.69040636,131.86,131.84,0.04942177]
[1744704975222,0.05531621,131.87,131.84,0.04942177]
[1744704981420,7.32730517,131.94,131.85,7.32730517]
[1744704981626,7.32730517,131.94,131.86,34.4002]
[1744704982525,0.05709991,131.91,131.89,0.05468467]
[1744704982925,0.05709991,131.91,131.89,28.41468467]
[1744704983424,35.68730517,131.98,131.89,35.74198984]
[1744704983624,35.68730517,131.98,131.89,35.68730517]
[1744704984120,28.36,131.98,131.89,28.36]
[1744704984355,0.04642671,131.95,131.92,0.05220891]
[1744704987028,0.04642671,131.95,131.92,28.41220891]
[1744704993931,7.32730517,132.01,131.92,28.41220891]
[1744704994132,7.32730517,132.01,131.93,2.0916]
[1744704994431,7.32730517,132.01,131.93,64.0916]
[1744704995027,7.32730517,132.01,131.96,0.05160014]
[1744704997625,7.32730517,132.03,131.97,28.16]
[1744704997930,7.32730517,132.03,131.99,0.05146337]
[1744704999527,2.0816,132.04,131.99,0.05146337]
[1744704999729,7.32730517,132.05,132.0,28.14]
[1744704999926,7.32730517,132.03,131.99,0.05146337]
[1744705000125,7.32730517,132.03,131.97,28.14]
[1744705000330,7.32730517,132.03,132.0,0.05825907]
[1744705000545,7.32730517,132.01,132.0,0.05825907]
[1744705007337,7.32730517,132.03,132.0,0.05825907]
[1744705010041,7.32730517,132.01,132.0,0.05825907]
[1744705012534,6.1688,132.04,132.0,0.05825907]
[1744705012838,7.32730517,132.02,132.0,0.05825907]
[1744705013138,4.67916542,132.01,132.0,0.05825907]
[1744705013843,4.67916542,132.02,132.0,28.19825907]
[1744705014138,4.67916542,132.02,132.0,28.1973156]
[1744705015142,28.14,132.09,132.0,0.0573156]
[1744705015337,4.67916542,132.01,131.96,32.1763]
[1744705015538,4.67916542,132.01,131.97,0.05582657]
[1744705019337,4.67916542,132.02,131.97,4.73499199]
[1744705019537,4.67916542,132.04,131.97,4.67916542]
[1744705019866,4.67916542,132.04,131.99,0.05782609]
[1744705020047,4.67916542,132.04,131.99,28.19782609]
[1744705021143,7.30836537,132.05,131.99,28.19782609]
[1744705021342,7.30836537,132.05,131.99,28.14]
[1744705021643,7.30836537,132.05,132.01,0.05511304]
[1744705024841,7.30836537,132.09,132.02,28.14]
[1744705025233,7.30836537,132.09,132.04,0.05512514]
[1744705025439,28.14,132.1,132.05,28.12]
[1744705027640,7.30836537,132.11,132.05,28.12]
[1744705027841,7.30836537,132.11,132.07,0.05228173]
[1744705028147,35.42836537,132.13,132.07,0.05228173]
[1744705028443,4.161,132.14,132.08,28.12]
[1744705028646,9.41346537,132.14,132.1,0.05243301]
[1744705029145,2.1051,132.14,132.1,0.05243301]
[1744705029349,7.30836537,132.13,132.1,0.05243301]
[1744705029846,7.30836537,132.11,132.08,28.12]
[1744705030145,7.30836537,132.09,132.05,28.12]
[1744705030943,0.04797514,132.08,132.06,0.04976886]
[1744705034953,7.30836537,132.07,132.06,0.04976886]
[1744705036352,7.30836537,132.07,131.97,28.12]
[1744705036551,7.30836537,132.01,131.97,34.2347]
[1744705036752,7.30836537,131.99,131.92,28.12]
[1744705036953,7.30836537,131.99,131.92,34.2347]
[1744705037346,0.04840825,131.97,131.94,0.05562544]
[1744705042454,0.04840825,131.97,131.95,28.12]
[1744705043766,7.30836537,131.96,131.94,0.05562544]
[1744705045069,0.04840825,131.97,131.94,0.05562544]
[1744705048666,0.04840825,131.97,131.95,28.38]
[1744705051172,7.30836537,132.01,131.95,28.38]
[1744705052174,0.05379362,131.99,131.97,0.05025422]
[1744705057972,2.0489,132.08,131.98,28.38]
[1744705058176,4.67977797,132.03,131.98,28.38]
[1744705059277,7.30920745,132.05,131.99,0.05602441]
[1744705059580,7.30920745,132.05,132.01,0.04920056]
[1744705063184,35.68920745,132.07,132.01,0.04920056]
[1744705066917,35.68920745,132.07,132.01,28.42920056]
[1744705068987,7.30920745,132.07,132.01,28.42920056]
[1744705070289,7.30920745,132.05,132.01,28.42920056]
[1744705070687,7.30920745,132.07,132.01,28.42920056]
[1744705070888,28.38,132.17,132.01,573.72920056]
[1744705071223,7.30920745,132.06,132.02,28.38]
[1744705071590,7.30920745,132.06,132.03,0.0549407]
[1744705072596,7.30920745,132.08,132.03,0.0549407]
[1744705072792,7.30920745,132.08,132.04,62.0]
[1744705073791,7.30920745,132.09,132.04,62.0]
[1744705074184,7.30920745,132.09,132.05,0.05576736]
[1744705074389,7.30920745,132.09,132.05,28.43576736]
[1744705076093,7.30920745,132.07,132.05,28.43576736]
[1744705079002,7.30920745,132.09,132.05,28.43576736]
[1744705080396,7.30920745,132.07,132.05,28.43576736]
[1744705081095,4.67618741,132.06,132.05,0.05576736]
[1744705083698,4.67618741,132.06,132.01,28.12]
[1744705084002,4.67618741,132.03,131.98,28.12]
[1744705084400,28.12,132.06,131.98,28.12]
[1744705084701,4.67618741,132.03,131.98,28.12]
[1744705085000,4.72477829,132.03,132.01,0.04815615]
[1744705085601,32.84477829,132.03,132.01,0.04815615]
[1744705085910,4.67618741,132.02,132.01,0.04815615]
[1744705087401,0.04859088,132.03,132.01,0.04815615]
[1744705087402,4.72477829,132.03,132.01,0.04815615]
[1744705089404,32.84477829,132.03,132.01,0.04815615]
[1744705089600,32.84477829,132.03,131.94,573.34]
[1744705089800,4.67618741,131.97,131.94,573.34]
[1744705090001,6.1195,132.02,131.94,578.01618741]
[1744705090303,4.67618741,132.0,131.94,578.01618741]
[1744705090802,0.05788461,131.98,131.96,4.73431692]
[1744705091003,4.67618741,132.02,131.96,4.73431692]
[1744705091322,0.05431937,131.98,131.96,4.73431692]
[1744705093805,4.67618741,132.02,131.97,28.12]
[1744705094905,0.04960414,132.01,131.97,28.12]
[1744705096304,4.67618741,132.0,131.97,28.12]
[1744705097806,4.67618741,131.98,131.96,0.05812951]
[1744705098204,4.72579155,131.98,131.96,0.05812951]
[1744705099503,4.72579155,131.98,131.94,28.12]
[1744705099710,4.67618741,131.95,131.91,34.2361]
[1744705099910,4.67618741,131.93,131.91,34.2361]
[1744705100508,4.67618741,131.95,131.91,34.2361]
[1744705100711,0.04910534,131.93,131.91,34.28448712]
[1744705108410,4.67618741,131.95,131.91,34.28448712]
[1744705108613,4.67618741,131.95,131.91,38.96067453]
[1744705109517,0.0563885,131.94,131.91,38.96067453]
[1744705112621,0.0563885,131.94,131.91,34.28448712]
[1744705113122,4.67618741,131.93,131.91,0.04838712]
[1744705123337,0.0563885,131.94,131.91,0.04838712]
[1744705123631,4.67618741,131.92,131.91,0.04838712]
[1744705124428,4.73257591,131.94,131.91,0.04838712]
[1744705129532,4.67618741,131.92,131.91,0.04838712]
[1744705132440,4.73257591,131.94,131.91,0.04838712]
[1744705142678,0.0563885,131.94,131.91,0.04838712]
[1744705142947,4.67618741,131.93,131.91,0.04838712]
[1744705144786,0.0563885,131.94,131.91,28.18838712]
[1744705145852,0.0563885,131.94,131.91,32.86457453]
[1744705146153,4.67618741,131.98,131.91,32.86457453]
[1744705147250,4.67618741,131.98,131.93,4.67618741]
[1744705147550,4.67618741,131.98,131.94,28.19269622]
[1744705151863,4.67618741,131.96,131.94,28.19269622]
[1744705152457,4.67618741,131.97,131.94,28.19269622]
[1744705158263,4.67618741,131.99,131.94,28.19269622]
[1744705158660,4.67618741,132.0,131.94,28.19269622]
[1744705160566,4.67618741,131.98,131.94,28.19269622]
[1744705160759,4.67618741,131.98,131.94,28.14]
[1744705160969,4.67618741,131.98,131.95,0.05567289]
[1744705162668,4.67618741,131.96,131.95,0.05567289]
[1744705162964,4.67618741,131.96,131.94,28.19070644]
[1744705164066,2.0047,132.05,131.94,28.19070644]
[1744705164261,4.67618741,131.99,131.98,0.05128943]
[1744705165165,28.12,132.04,131.98,0.05128943]
[1744705165363,4.67618741,132.0,131.98,0.05128943]
[1744705171269,4.67618741,132.02,131.98,0.05128943]
[1744705174168,4.67618741,132.02,131.99,62.0]
[1744705174771,4.67618741,132.02,131.98,0.05128943]
[1744705174970,4.67618741,132.0,131.98,0.05128943]
[1744705176664,4.67618741,132.04,131.99,4.67618741]
[1744705176866,4.67618741,132.04,132.0,28.1768746]
[1744705177771,4.67618741,132.04,132.01,62.0]
[1744705181069,4.67618741,132.04,132.0,28.1768746]
[1744705184075,4.67618741,132.04,132.0,90.1768746]
[1744705185475,4.67618741,132.04,132.0,28.1768746]
[1744705185678,4.67618741,132.02,132.0,28.1768746]
[1744705185877,4.67618741,132.02,132.0,28.12]
[1744705186175,4.67618741,132.02,132.0,28.17183473]
[1744705187773,4.67618741,132.02,132.0,0.05183473]
[1744705194088,28.1,132.05,132.0,0.05183473]
[1744705194389,4.67618741,132.02,132.0,0.05183473]
[1744705195487,28.1,132.05,132.0,0.05183473]
[1744705195690,4.67618741,132.02,132.0,0.05183473]
[1744705208498,28.1,132.05,132.0,0.05183473]
[1744705208999,4.67618741,132.03,132.0,0.05183473]
[1744705209697,4.67618741,132.04,132.0,28.15183473]
[1744705212094,4.67618741,132.02,132.0,0.05183473]
[1744705220103,32.77618741,132.02,132.0,0.05183473]
[1744705223300,4.67618741,132.02,132.0,0.05183473]
[1744705225500,4.67618741,132.01,132.0,0.05183473]
[1744705231404,4.67618741,132.01,131.96,28.1]
[1744705231604,4.67618741,131.98,131.96,28.1]
[1744705232407,4.73026195,131.98,131.96,28.15347233]
[1744705232608,4.73026195,131.98,131.96,0.05347233]
[1744705233508,0.05407454,131.98,131.96,0.05347233]
[1744705233706,4.73026195,131.98,131.96,0.05347233]
[1744705238007,4.73026195,131.98,131.9,28.1]
[1744705238208,4.67618741,131.94,131.9,28.1]
[1744705239004,0.05551386,131.93,131.91,0.05623109]
[1744705241911,4.67618741,131.92,131.91,0.05623109]
[1744705254019,28.15551386,131.93,131.91,0.05623109]
[1744705255017,0.05551386,131.93,131.91,0.05623109]
[1744705255321,0.05551386,131.93,131.91,4.7324185]
[1744705256728,0.05551386,131.93,131.91,0.05623109]
[1744705257630,4.73170127,131.93,131.91,0.05623109]
[1744705261022,0.05551386,131.93,131.91,0.05623109]
[1744705261222,4.67618741,131.92,131.91,0.05623109]
[1744705261618,4.67618741,131.92,131.87,28.08]
[1744705261925,4.67618741,131.89,131.87,28.08]
[1744705262826,4.72533692,131.89,131.87,28.13522957]
[1744705263730,0.04914951,131.89,131.87,28.13522957]
[1744705266133,4.67618741,131.93,131.87,32.81141698]
[1744705266335,4.67618741,131.93,131.88,2.0178]
[1744705266535,4.67618741,131.93,131.88,6.2487]
[1744705267334,0.05447366,131.92,131.88,6.2487]
[1744705269132,1.31928122,132.04,131.88,13.8287]
[1744705269357,4.67618741,131.99,131.93,4.67618741]
[1744705269537,4.67618741,131.99,131.94,28.08]
[1744705270239,0.05359514,131.98,131.95,0.05459368]
[1744705270840,0.05359514,131.98,131.95,4.73078109]
[1744705273542,3.9938,132.04,131.97,4.67618741]
[1744705273838,4.67618741,132.03,131.98,28.08]
[1744705274640,4.67618741,132.03,131.99,0.05549006]
[1744705283047,28.08,132.08,131.99,4.73167747]
[1744705283242,4.67618741,132.05,132.02,0.04781564]
[1744705283547,4.67618741,132.07,132.02,0.04781564]
[1744705283744,4.67618741,132.05,132.02,0.04781564]
[1744705285147,4.67618741,132.03,132.02,0.04781564]
[1744705285347,32.1208,132.09,132.02,0.04781564]
[1744705285544,4.67618741,132.05,132.02,0.04781564]
[1744705287250,4.67618741,132.05,132.02,28.10781564]
[1744705287651,4.67618741,132.07,132.02,28.10781564]
[1744705290770,36.79698741,132.09,132.03,4.67618741]
[1744705290948,6.71958741,132.09,132.05,0.05336594]
[1744705291148,4.67618741,132.11,132.05,32.78955335]
[1744705291452,28.06,132.12,132.05,32.78955335]
[1744705291752,4.67618741,132.1,132.05,32.78955335]
[1744705293355,4.67618741,132.06,132.05,0.05336594]
[1744705294060,6.0084,132.11,132.05,0.05336594]
[1744705294256,4.67618741,132.06,132.05,0.05336594]
[1744705302561,4.67618741,132.01,131.96,28.04]
[1744705303462,0.05317482,132.0,131.97,0.05832953]
[1744705303661,0.05317482,132.0,131.97,6.63768741]
[1744705303862,0.05317482,132.0,131.97,6.69259676]
[1744705305463,28.04,132.06,131.99,4.67618741]
[1744705305666,4.67618741,132.05,131.99,32.73618741]
[1744705306260,4.1121,132.09,131.99,32.73618741]
[1744705306464,4.67618741,132.06,132.03,0.05813773]
[1744705307566,4.67618741,132.07,132.03,0.05813773]
[1744705309267,4.1121,132.09,132.03,0.05813773]
[1744705309465,4.67618741,132.07,132.03,0.05813773]
[1744705312366,545.26,132.1,132.03,0.05813773]
[1744705312665,4.67618741,132.09,132.03,4.73432514]
[1744705312860,4.67618741,132.09,132.03,4.67618741]
[1744705313063,4.67618741,132.09,132.05,0.05762685]
[1744705315473,28.04,132.11,132.05,0.05762685]
[1744705315770,4.67618741,132.1,132.05,32.77381426]
[1744705317070,4.67618741,132.08,132.05,28.09762685]
[1744705318673,4.67618741,132.06,132.05,0.05762685]
[1744705325379,32.69618741,132.08,132.05,0.05762685]
[1744705326388,4.67618741,132.08,132.05,0.05762685]
[1744705328788,4.67618741,132.07,132.05,0.05762685]
[1744705329688,4.67618741,132.08,132.05,0.05762685]
[1744705332485,4.67618741,132.06,132.05,0.05762685]